[Event "*** Titled Tuesday Blitz"]
[Site "Chess.com"]
[Date "2020.10.20"]
[Round "9"]
[White "SamuelGhimpu2003"]
[Black "XDPS"]
[Result "0-1"]
[WhiteElo "2569"]
[BlackElo "2716"]
[TimeControl "180+1"]
[EndTime "11:44:32 PDT"]
[Termination "XDPS won by resignation"]

1. d4 {[%clk 0:03:00.9]} 1... d5 {[%clk 0:02:58.3]} 2. Nc3 {[%clk 0:02:53.6]}
2... e6 {[%clk 0:02:58.8]} 3. Bf4 {[%clk 0:02:53.1]} 3... a6 {[%clk 0:02:55.9]}
4. e3 {[%clk 0:02:53.3]} 4... c5 {[%clk 0:02:55.9]} 5. Nf3 {[%clk 0:02:53.5]}
5... Nc6 {[%clk 0:02:55.7]} 6. dxc5 {[%clk 0:02:53.5]} 6... Bxc5 {[%clk
0:02:55.3]} 7. Bd3 {[%clk 0:02:54.4]} 7... Nge7 {[%clk 0:02:52.9]} 8. O-O {[%clk
0:02:54.9]} 8... f6 {[%clk 0:02:51.3]} 9. e4 {[%clk 0:02:51.9]} 9... d4 {[%clk
0:02:50.8]} 10. Na4 {[%clk 0:02:47.6]} 10... Ba7 {[%clk 0:02:48]} 11. b3 {[%clk
0:02:39.7]} 11... e5 {[%clk 0:02:46.6]} 12. Bg3 {[%clk 0:02:38.4]} 12... O-O
{[%clk 0:02:44.5]} 13. Nb2 {[%clk 0:02:37.8]} 13... g5 {[%clk 0:02:44.6]} 14. h3
{[%clk 0:02:35.6]} 14... Ng6 {[%clk 0:02:44.5]} 15. a4 {[%clk 0:02:33]} 15...
Kg7 {[%clk 0:02:39.1]} 16. Nh2 {[%clk 0:02:29.1]} 16... Rh8 {[%clk 0:02:36.1]}
17. Qh5 {[%clk 0:02:14.4]} 17... Bd7 {[%clk 0:02:34.8]} 18. h4 {[%clk 0:01:47]}
18... h6 {[%clk 0:02:33.2]} 19. hxg5 {[%clk 0:00:43.2]} 19... hxg5 {[%clk
0:02:32.9]} 20. Qf3 {[%clk 0:00:43.8]} 20... Qe7 {[%clk 0:02:26.8]} 21. Nc4
{[%clk 0:00:35.8]} 21... Rh7 {[%clk 0:02:22.4]} 0-1

[Event "*** Titled Tuesday Blitz"]
[Site "Chess.com"]
[Date "2020.10.20"]
[Round "9"]
[White "niki_2003"]
[Black "PawnEatingZombie"]
[Result "1-0"]
[WhiteElo "1864"]
[BlackElo "2132"]
[TimeControl "180+1"]
[EndTime "11:44:41 PDT"]
[Termination "niki_2003 won by resignation"]

1. d4 {[%clk 0:02:52.8]} 1... d5 {[%clk 0:02:58.7]} 2. c4 {[%clk 0:02:53]} 2...
e6 {[%clk 0:02:59.1]} 3. Nc3 {[%clk 0:02:53.3]} 3... Bb4 {[%clk 0:02:59.7]} 4.
Nf3 {[%clk 0:02:48.8]} 4... dxc4 {[%clk 0:02:59.8]} 5. e3 {[%clk 0:02:42.5]}
5... b5 {[%clk 0:02:59.8]} 6. a3 {[%clk 0:02:41.2]} 6... Ba5 {[%clk 0:02:58.3]}
7. Be2 {[%clk 0:02:37.7]} 7... Bb7 {[%clk 0:02:56.1]} 8. O-O {[%clk 0:02:38]}
8... a6 {[%clk 0:02:55.8]} 9. a4 {[%clk 0:02:36.4]} 9... c6 {[%clk 0:02:49.2]}
10. Qc2 {[%clk 0:02:32.3]} 10... Nf6 {[%clk 0:02:45.9]} 11. b3 {[%clk
0:02:31.6]} 11... cxb3 {[%clk 0:02:43]} 12. Qxb3 {[%clk 0:02:31]} 12... b4
{[%clk 0:02:41.2]} 13. Na2 {[%clk 0:02:30]} 13... c5 {[%clk 0:02:36.4]} 14. dxc5
{[%clk 0:02:28.1]} 14... Nbd7 {[%clk 0:02:28.3]} 15. Nxb4 {[%clk 0:02:26.7]}
15... Nxc5 {[%clk 0:02:23.1]} 16. Qa3 {[%clk 0:02:23.9]} 16... O-O {[%clk
0:02:11.1]} 17. Rd1 {[%clk 0:02:19.5]} 17... Qe7 {[%clk 0:01:41.2]} 18. Nd3
{[%clk 0:02:07]} 18... Rfc8 {[%clk 0:01:40.8]} 19. Bb2 {[%clk 0:01:59.8]} 19...
Kf8 {[%clk 0:01:39.5]} 20. Nxc5 {[%clk 0:01:44.3]} 20... Qxc5 {[%clk 0:01:36]}
21. Qxc5+ {[%clk 0:01:44.3]} 21... Rxc5 {[%clk 0:01:33.2]} 22. Ba3 {[%clk
0:01:45.2]} 22... Bb6 {[%clk 0:01:27]} 23. Rab1 {[%clk 0:01:27.5]} 1-0

[Event "*** Titled Tuesday Blitz"]
[Site "Chess.com"]
[Date "2020.10.20"]
[Round "9"]
[White "WiktoriaPOL"]
[Black "LaPorfia"]
[Result "1-0"]
[WhiteElo "2091"]
[BlackElo "2297"]
[TimeControl "180+1"]
[EndTime "11:44:42 PDT"]
[Termination "WiktoriaPOL won by resignation"]

1. c4 {[%clk 0:03:00.9]} 1... c5 {[%clk 0:02:58.6]} 2. Nf3 {[%clk 0:03:00.3]}
2... Nc6 {[%clk 0:02:58]} 3. Nc3 {[%clk 0:02:59.8]} 3... g6 {[%clk 0:02:57.9]}
4. e3 {[%clk 0:03:00]} 4... Nf6 {[%clk 0:02:55.9]} 5. d4 {[%clk 0:02:59.5]} 5...
cxd4 {[%clk 0:02:56.2]} 6. exd4 {[%clk 0:02:59.5]} 6... d5 {[%clk 0:02:56.3]} 7.
Bg5 {[%clk 0:02:59.1]} 7... Ne4 {[%clk 0:02:46.4]} 8. Nxd5 {[%clk 0:02:52.8]}
8... Nxg5 {[%clk 0:02:45.4]} 9. Nxg5 {[%clk 0:02:51.6]} 9... e6 {[%clk
0:02:45.4]} 10. Qf3 {[%clk 0:02:44.5]} 10... Qxg5 {[%clk 0:02:27.7]} 11. Nc7+
{[%clk 0:02:43.5]} 11... Kd7 {[%clk 0:02:25.7]} 12. Qxf7+ {[%clk 0:02:40.7]}
12... Be7 {[%clk 0:02:20.6]} 13. Nxa8 {[%clk 0:02:39.8]} 13... Rf8 {[%clk
0:02:18.6]} 14. Qxh7 {[%clk 0:02:36.2]} 14... Nxd4 {[%clk 0:02:07.1]} 15. Bd3
{[%clk 0:02:31.6]} 15... Kd8 {[%clk 0:01:31.2]} 16. O-O {[%clk 0:02:29.3]} 16...
Nf3+ {[%clk 0:01:06.7]} 17. Kh1 {[%clk 0:02:28.2]} 17... Ne5 {[%clk 0:01:07.1]}
18. f4 {[%clk 0:02:22.7]} 1-0

[Event "*** Titled Tuesday Blitz"]
[Site "Chess.com"]
[Date "2020.10.20"]
[Round "9"]
[White "Euwe1234"]
[Black "doons21"]
[Result "1-0"]
[WhiteElo "2389"]
[BlackElo "2542"]
[TimeControl "180+1"]
[EndTime "11:44:43 PDT"]
[Termination "Euwe1234 won by checkmate"]

1. d4 {[%clk 0:03:00.9]} 1... Nf6 {[%clk 0:02:59.9]} 2. Nf3 {[%clk 0:02:43]}
2... g6 {[%clk 0:02:59.7]} 3. c4 {[%clk 0:02:43.9]} 3... Bg7 {[%clk 0:03:00]} 4.
Nc3 {[%clk 0:02:44.4]} 4... O-O {[%clk 0:03:00.7]} 5. e4 {[%clk 0:02:43.6]} 5...
d6 {[%clk 0:03:00.9]} 6. Be2 {[%clk 0:02:43.9]} 6... e5 {[%clk 0:03:01.4]} 7.
O-O {[%clk 0:02:43.3]} 7... Nbd7 {[%clk 0:03:01.9]} 8. dxe5 {[%clk 0:02:39.2]}
8... dxe5 {[%clk 0:03:01.8]} 9. Qc2 {[%clk 0:02:39.4]} 9... c6 {[%clk
0:03:01.3]} 10. Rd1 {[%clk 0:02:39.4]} 10... Qe7 {[%clk 0:03:01.6]} 11. Be3
{[%clk 0:02:39.1]} 11... Ng4 {[%clk 0:02:47.7]} 12. Bc1 {[%clk 0:02:36.3]} 12...
a5 {[%clk 0:02:41.4]} 13. h3 {[%clk 0:02:34.8]} 13... Ngf6 {[%clk 0:02:40.9]}
14. Be3 {[%clk 0:02:35.3]} 14... Nh5 {[%clk 0:02:31.4]} 15. Na4 {[%clk
0:02:13.6]} 15... Nf4 {[%clk 0:02:27.2]} 16. Bf1 {[%clk 0:02:08.6]} 16... Qf6
{[%clk 0:02:20.5]} 17. g3 {[%clk 0:02:01.2]} 17... Ne6 {[%clk 0:02:08.4]} 18.
Bg2 {[%clk 0:01:56.6]} 18... h5 {[%clk 0:01:28.8]} 19. c5 {[%clk 0:01:50.1]}
19... g5 {[%clk 0:01:28.9]} 20. h4 {[%clk 0:01:42.7]} 20... g4 {[%clk
0:01:26.9]} 21. Ng5 {[%clk 0:01:41.3]} 21... Nd4 {[%clk 0:01:27.1]} 22. Bxd4
{[%clk 0:01:30.5]} 22... exd4 {[%clk 0:01:27.1]} 23. e5 {[%clk 0:01:30.7]} 23...
Nxe5 {[%clk 0:01:18.7]} 24. Qh7# {[%clk 0:01:29.5]} 1-0

[Event "*** Titled Tuesday Blitz"]
[Site "Chess.com"]
[Date "2020.10.20"]
[Round "9"]
[White "LubovMarkelova"]
[Black "RobPeresian"]
[Result "0-1"]
[WhiteElo "2233"]
[BlackElo "2407"]
[TimeControl "180+1"]
[EndTime "11:44:47 PDT"]
[Termination "RobPeresian won by resignation"]

1. Nf3 {[%clk 0:03:00.9]} 1... d5 {[%clk 0:02:20.7]} 2. d4 {[%clk 0:02:59.4]}
2... Nf6 {[%clk 0:02:21.3]} 3. c4 {[%clk 0:03:00]} 3... c6 {[%clk 0:02:19.6]} 4.
e3 {[%clk 0:03:00.9]} 4... a6 {[%clk 0:02:18.1]} 5. Bd3 {[%clk 0:02:56.1]} 5...
Bg4 {[%clk 0:02:16.5]} 6. b3 {[%clk 0:02:55.4]} 6... Nbd7 {[%clk 0:02:15.7]} 7.
Nbd2 {[%clk 0:02:55.2]} 7... e6 {[%clk 0:02:15.4]} 8. Bb2 {[%clk 0:02:55.4]}
8... Bb4 {[%clk 0:02:14]} 9. O-O {[%clk 0:02:54.7]} 9... Bxd2 {[%clk 0:02:13.2]}
10. Qxd2 {[%clk 0:02:54.9]} 10... Bxf3 {[%clk 0:02:13]} 11. gxf3 {[%clk
0:02:55.8]} 11... O-O {[%clk 0:02:13.5]} 12. Kh1 {[%clk 0:02:53.9]} 12... Nh5
{[%clk 0:02:10.7]} 13. Rg1 {[%clk 0:02:45.4]} 13... f5 {[%clk 0:02:10.4]} 14. e4
{[%clk 0:02:08.3]} 14... fxe4 {[%clk 0:02:08.2]} 15. fxe4 {[%clk 0:02:08.4]}
15... Qh4 {[%clk 0:02:08.2]} 16. Qg5 {[%clk 0:01:50.6]} 16... Qxg5 {[%clk
0:01:59.8]} 17. Rxg5 {[%clk 0:01:46.6]} 17... Nf4 {[%clk 0:01:45.6]} 18. Bf1
{[%clk 0:01:40.8]} 18... Nf6 {[%clk 0:01:42.1]} 19. e5 {[%clk 0:01:27.4]} 19...
Ne4 {[%clk 0:01:40.6]} 20. Rg2 {[%clk 0:01:01.4]} 20... Nxg2 {[%clk 0:01:37.6]}
21. Kxg2 {[%clk 0:01:02.3]} 21... Rxf2+ {[%clk 0:01:37.3]} 0-1

[Event "*** Titled Tuesday Blitz"]
[Site "Chess.com"]
[Date "2020.10.20"]
[Round "9"]
[White "Kaslask"]
[Black "Gerodot71"]
[Result "0-1"]
[WhiteElo "2304"]
[BlackElo "2460"]
[TimeControl "180+1"]
[EndTime "11:44:51 PDT"]
[Termination "Gerodot71 won by resignation"]

1. d4 {[%clk 0:03:00.9]} 1... Nf6 {[%clk 0:03:00]} 2. c4 {[%clk 0:03:00.6]} 2...
e6 {[%clk 0:03:00.2]} 3. Nf3 {[%clk 0:02:58.8]} 3... d5 {[%clk 0:03:00.1]} 4.
Nc3 {[%clk 0:02:56.9]} 4... Bb4 {[%clk 0:02:59.4]} 5. cxd5 {[%clk 0:02:54.1]}
5... exd5 {[%clk 0:02:59.2]} 6. Bg5 {[%clk 0:02:48.7]} 6... h6 {[%clk 0:02:59]}
7. Bxf6 {[%clk 0:02:46.8]} 7... Qxf6 {[%clk 0:02:59.9]} 8. Qb3 {[%clk
0:02:45.2]} 8... Nc6 {[%clk 0:02:33.8]} 9. e3 {[%clk 0:02:38.6]} 9... O-O {[%clk
0:02:33]} 10. Bb5 {[%clk 0:02:37.5]} 10... Bxc3+ {[%clk 0:02:24.3]} 11. bxc3
{[%clk 0:02:34.7]} 11... Qg6 {[%clk 0:02:14.5]} 12. Qxd5 {[%clk 0:02:12.9]}
12... Be6 {[%clk 0:02:05.9]} 13. Qc5 {[%clk 0:02:00.2]} 13... Qxg2 {[%clk
0:02:03.9]} 14. Ke2 {[%clk 0:01:57.2]} 14... Bg4 {[%clk 0:01:57]} 15. Bxc6
{[%clk 0:01:55.7]} 15... bxc6 {[%clk 0:01:55.9]} 16. Qxc6 {[%clk 0:01:55.8]}
16... Rab8 {[%clk 0:01:55.7]} 17. Rab1 {[%clk 0:01:53.6]} 17... Bf5 {[%clk
0:01:52.1]} 18. Rxb8 {[%clk 0:01:49.6]} 18... Rxb8 {[%clk 0:01:53]} 19. Rd1
{[%clk 0:01:41.2]} 19... Rb2+ {[%clk 0:01:32.4]} 20. Rd2 {[%clk 0:01:38.6]}
20... Rxd2+ {[%clk 0:01:17.6]} 21. Nxd2 {[%clk 0:01:33.8]} 21... Qxc6 {[%clk
0:01:17]} 0-1

[Event "*** Titled Tuesday Blitz"]
[Site "Chess.com"]
[Date "2020.10.20"]
[Round "9"]
[White "NotFischer"]
[Black "Cocaino74"]
[Result "1-0"]
[WhiteElo "2267"]
[BlackElo "2354"]
[TimeControl "180+1"]
[EndTime "11:45:06 PDT"]
[Termination "NotFischer won by resignation"]

1. e4 {[%clk 0:02:59.5]} 1... c5 {[%clk 0:02:57.9]} 2. Nc3 {[%clk 0:02:59.5]}
2... Nc6 {[%clk 0:02:57.8]} 3. g3 {[%clk 0:02:59.9]} 3... g6 {[%clk 0:02:58.4]}
4. Bg2 {[%clk 0:03:00.3]} 4... Bg7 {[%clk 0:02:59.1]} 5. d3 {[%clk 0:03:00.8]}
5... e6 {[%clk 0:02:59.6]} 6. f4 {[%clk 0:03:01.4]} 6... Nge7 {[%clk 0:02:59.1]}
7. Nf3 {[%clk 0:03:01.7]} 7... d5 {[%clk 0:02:58.8]} 8. O-O {[%clk 0:02:57.5]}
8... O-O {[%clk 0:02:58.1]} 9. Bd2 {[%clk 0:02:46.1]} 9... Rb8 {[%clk
0:02:56.7]} 10. e5 {[%clk 0:02:42.2]} 10... b5 {[%clk 0:02:51.1]} 11. a3 {[%clk
0:02:41.8]} 11... a5 {[%clk 0:02:50.5]} 12. a4 {[%clk 0:02:41.5]} 12... b4
{[%clk 0:02:48.7]} 13. Nb5 {[%clk 0:02:41.7]} 13... Ba6 {[%clk 0:02:46.3]} 14.
Nd6 {[%clk 0:02:42]} 14... Nf5 {[%clk 0:02:40.7]} 15. Nxf5 {[%clk 0:02:38.2]}
15... exf5 {[%clk 0:02:41.6]} 16. b3 {[%clk 0:02:38.6]} 16... f6 {[%clk
0:02:40.8]} 17. Re1 {[%clk 0:02:31.9]} 17... Re8 {[%clk 0:02:35.1]} 18. e6
{[%clk 0:02:15.1]} 18... Qd6 {[%clk 0:02:31.9]} 19. Nh4 {[%clk 0:02:10.1]} 19...
Rxe6 {[%clk 0:02:26.7]} 20. Rxe6 {[%clk 0:02:09.3]} 20... Qxe6 {[%clk
0:02:27.6]} 21. Qf3 {[%clk 0:02:10.1]} 21... Nd4 {[%clk 0:02:16.3]} 22. Qxd5
{[%clk 0:02:09.8]} 22... Qxd5 {[%clk 0:02:17]} 23. Bxd5+ {[%clk 0:02:09.6]}
23... Kf8 {[%clk 0:02:17.9]} 24. Be3 {[%clk 0:01:47.4]} 24... Rd8 {[%clk
0:01:34.4]} 25. Bxd4 {[%clk 0:01:46.8]} 25... cxd4 {[%clk 0:01:35.3]} 26. Bc4
{[%clk 0:01:46.5]} 26... Bb7 {[%clk 0:01:32.5]} 27. Kf2 {[%clk 0:01:46]} 27...
Re8 {[%clk 0:01:29.7]} 28. Re1 {[%clk 0:01:44]} 28... Rxe1 {[%clk 0:01:28.5]}
29. Kxe1 {[%clk 0:01:44.9]} 29... g5 {[%clk 0:01:26.9]} 30. Nxf5 {[%clk
0:01:44.2]} 1-0

[Event "*** Titled Tuesday Blitz"]
[Site "Chess.com"]
[Date "2020.10.20"]
[Round "9"]
[White "TC2304"]
[Black "AsaHoffmann"]
[Result "0-1"]
[WhiteElo "2254"]
[BlackElo "2379"]
[TimeControl "180+1"]
[EndTime "11:45:23 PDT"]
[Termination "AsaHoffmann won by resignation"]

1. d4 {[%clk 0:03:00.9]} 1... Nf6 {[%clk 0:02:59]} 2. Bg5 {[%clk 0:03:01.2]}
2... e6 {[%clk 0:02:57.8]} 3. e4 {[%clk 0:03:01.3]} 3... d6 {[%clk 0:02:53.4]}
4. Nd2 {[%clk 0:02:59.8]} 4... Be7 {[%clk 0:02:52.7]} 5. Bd3 {[%clk 0:02:59.8]}
5... c6 {[%clk 0:02:51.8]} 6. Qe2 {[%clk 0:02:59.6]} 6... Nbd7 {[%clk
0:02:47.1]} 7. f4 {[%clk 0:02:59.1]} 7... d5 {[%clk 0:02:46.5]} 8. e5 {[%clk
0:02:58.4]} 8... Ng8 {[%clk 0:02:45.7]} 9. Bxe7 {[%clk 0:02:58.8]} 9... Nxe7
{[%clk 0:02:45.6]} 10. Ngf3 {[%clk 0:02:45.8]} 10... c5 {[%clk 0:02:42]} 11. c3
{[%clk 0:02:44.5]} 11... Qb6 {[%clk 0:02:41]} 12. Rb1 {[%clk 0:02:32.6]} 12...
g6 {[%clk 0:02:39.5]} 13. O-O {[%clk 0:02:28.1]} 13... Nc6 {[%clk 0:02:37.9]}
14. Qf2 {[%clk 0:02:09.4]} 14... cxd4 {[%clk 0:02:31.1]} 15. cxd4 {[%clk
0:02:06.2]} 15... a6 {[%clk 0:02:28]} 16. Nb3 {[%clk 0:01:59.6]} 16... Nb4
{[%clk 0:02:16.5]} 17. Be2 {[%clk 0:01:54.8]} 17... Nxa2 {[%clk 0:02:16]} 18. g4
{[%clk 0:01:38.7]} 18... Qxb3 {[%clk 0:02:13.1]} 19. f5 {[%clk 0:01:36.8]} 19...
gxf5 {[%clk 0:02:12]} 20. gxf5 {[%clk 0:01:36.8]} 20... Nb6 {[%clk 0:02:04.5]}
21. fxe6 {[%clk 0:01:31.5]} 21... Bxe6 {[%clk 0:02:03.8]} 22. Ng5 {[%clk
0:01:31.5]} 22... O-O-O {[%clk 0:02:02.1]} 23. Nxf7 {[%clk 0:01:18.7]} 23...
Rhg8+ {[%clk 0:01:58.3]} 24. Kh1 {[%clk 0:01:17.7]} 24... Rdf8 {[%clk
0:01:57.7]} 25. Nd6+ {[%clk 0:01:16.8]} 25... Kb8 {[%clk 0:01:55.4]} 26. Qxf8+
{[%clk 0:01:12.4]} 26... Rxf8 {[%clk 0:01:54.5]} 27. Rxf8+ {[%clk 0:01:13.3]}
27... Ka7 {[%clk 0:01:53.4]} 28. Re8 {[%clk 0:00:55]} 28... Nc3 {[%clk
0:01:39.4]} 29. Re1 {[%clk 0:00:41]} 29... Nxe2 {[%clk 0:01:37.5]} 30. Rxe2
{[%clk 0:00:41.9]} 30... Qd1+ {[%clk 0:01:36.9]} 0-1

[Event "*** Titled Tuesday Blitz"]
[Site "Chess.com"]
[Date "2020.10.20"]
[Round "9"]
[White "AliKa2810"]
[Black "Tenamu"]
[Result "0-1"]
[WhiteElo "2567"]
[BlackElo "2425"]
[TimeControl "180+1"]
[EndTime "11:45:30 PDT"]
[Termination "Tenamu won by resignation"]

1. d4 {[%clk 0:03:00.9]} 1... e6 {[%clk 0:03:00]} 2. e4 {[%clk 0:03:00.4]} 2...
Nf6 {[%clk 0:02:59.4]} 3. e5 {[%clk 0:02:58.9]} 3... Nd5 {[%clk 0:02:59]} 4. c4
{[%clk 0:02:59.1]} 4... Nb6 {[%clk 0:02:59]} 5. Nc3 {[%clk 0:02:58.5]} 5... d6
{[%clk 0:02:58.5]} 6. Nf3 {[%clk 0:02:58.1]} 6... Be7 {[%clk 0:02:55.2]} 7. Bd3
{[%clk 0:02:55.1]} 7... Nc6 {[%clk 0:02:51]} 8. exd6 {[%clk 0:02:53.2]} 8...
cxd6 {[%clk 0:02:51.9]} 9. Qe2 {[%clk 0:02:46.8]} 9... O-O {[%clk 0:02:47.8]}
10. h4 {[%clk 0:02:45.4]} 10... h6 {[%clk 0:02:45.9]} 11. h5 {[%clk 0:02:28.8]}
11... Bd7 {[%clk 0:02:41.1]} 12. Rh3 {[%clk 0:02:21.5]} 12... f5 {[%clk
0:02:34.8]} 13. Rg3 {[%clk 0:02:20]} 13... Kh7 {[%clk 0:02:34.8]} 14. d5 {[%clk
0:01:47]} 14... exd5 {[%clk 0:02:33.5]} 15. cxd5 {[%clk 0:01:47.9]} 15... Nb4
{[%clk 0:02:33.1]} 16. Nd4 {[%clk 0:01:48.5]} 16... Bf6 {[%clk 0:02:23.4]} 17.
Nxf5 {[%clk 0:01:35.7]} 17... Nxd3+ {[%clk 0:02:15.6]} 18. Qxd3 {[%clk
0:01:36.6]} 18... Kh8 {[%clk 0:02:09.1]} 19. Nxd6 {[%clk 0:01:27.8]} 19... Qe7+
{[%clk 0:02:02.8]} 20. Nde4 {[%clk 0:01:12.7]} 20... Bxc3+ {[%clk 0:02:02.5]}
21. bxc3 {[%clk 0:01:12]} 21... Rae8 {[%clk 0:02:01.6]} 22. f3 {[%clk
0:00:53.7]} 22... Qh4 {[%clk 0:02:00.5]} 23. Be3 {[%clk 0:00:20.1]} 23... Rxe4
{[%clk 0:01:55.5]} 24. Qxe4 {[%clk 0:00:20.6]} 24... Qxg3+ {[%clk 0:01:55.1]}
25. Bf2 {[%clk 0:00:21.3]} 25... Qg5 {[%clk 0:01:50.7]} 26. g4 {[%clk
0:00:17.2]} 26... Re8 {[%clk 0:01:49.7]} 0-1

[Event "*** Titled Tuesday Blitz"]
[Site "Chess.com"]
[Date "2020.10.20"]
[Round "9"]
[White "Goryachkina"]
[Black "UKR_Master"]
[Result "1-0"]
[WhiteElo "2656"]
[BlackElo "2456"]
[TimeControl "180+1"]
[EndTime "11:45:57 PDT"]
[Termination "Goryachkina won by resignation"]

1. e4 {[%clk 0:03:00.9]} 1... c5 {[%clk 0:02:59.8]} 2. Nf3 {[%clk 0:03:00.7]}
2... d6 {[%clk 0:03:00.3]} 3. c3 {[%clk 0:03:00.6]} 3... Nf6 {[%clk 0:02:59.6]}
4. Be2 {[%clk 0:03:00.7]} 4... Nc6 {[%clk 0:02:59.8]} 5. d4 {[%clk 0:03:00.2]}
5... cxd4 {[%clk 0:02:57.5]} 6. cxd4 {[%clk 0:03:01.1]} 6... g6 {[%clk
0:02:57.9]} 7. Nc3 {[%clk 0:03:00.7]} 7... Bg7 {[%clk 0:02:58.2]} 8. O-O {[%clk
0:03:00.7]} 8... O-O {[%clk 0:02:58.2]} 9. h3 {[%clk 0:03:00.6]} 9... Bd7 {[%clk
0:02:53.6]} 10. Be3 {[%clk 0:02:51.2]} 10... e5 {[%clk 0:02:53.4]} 11. d5 {[%clk
0:02:39.5]} 11... Ne7 {[%clk 0:02:53.4]} 12. Nd2 {[%clk 0:02:39.5]} 12... a6
{[%clk 0:02:52.6]} 13. Nc4 {[%clk 0:02:34.4]} 13... Nc8 {[%clk 0:02:49.1]} 14.
a4 {[%clk 0:02:33.6]} 14... b6 {[%clk 0:02:41]} 15. Qb3 {[%clk 0:02:25.5]} 15...
Rb8 {[%clk 0:02:39.1]} 16. Qb4 {[%clk 0:02:22.3]} 16... Ne8 {[%clk 0:02:32.5]}
17. Rac1 {[%clk 0:02:11.5]} 17... f5 {[%clk 0:02:30.4]} 18. exf5 {[%clk
0:02:02.5]} 18... gxf5 {[%clk 0:02:30.1]} 19. f4 {[%clk 0:02:02.8]} 19... e4
{[%clk 0:02:28.4]} 20. a5 {[%clk 0:01:48.5]} 20... b5 {[%clk 0:02:20.9]} 21. Nb6
{[%clk 0:01:48.6]} 21... Nf6 {[%clk 0:02:16.2]} 22. Rfd1 {[%clk 0:01:42.5]}
22... Qe7 {[%clk 0:02:13.3]} 23. Na2 {[%clk 0:01:37.2]} 23... Nxb6 {[%clk
0:02:04.6]} 24. axb6 {[%clk 0:01:36.8]} 24... Qf7 {[%clk 0:01:55.8]} 25. Qb3
{[%clk 0:01:36.6]} 25... Rfc8 {[%clk 0:01:50.8]} 26. Rxc8+ {[%clk 0:01:13]}
26... Rxc8 {[%clk 0:01:50.4]} 27. Nc3 {[%clk 0:01:12.8]} 27... Bf8 {[%clk
0:01:46.3]} 28. Qa3 {[%clk 0:01:12.4]} 28... Rb8 {[%clk 0:01:36.7]} 29. Qxa6
{[%clk 0:01:10.6]} 29... b4 {[%clk 0:01:37.3]} 30. Na2 {[%clk 0:01:05.5]} 30...
Nxd5 {[%clk 0:01:20.7]} 31. Rxd5 {[%clk 0:01:03.7]} 31... Be6 {[%clk 0:01:21.6]}
32. Nxb4 {[%clk 0:01:02]} 32... Bxd5 {[%clk 0:01:14.7]} 33. Nxd5 {[%clk
0:01:02]} 33... Qb7 {[%clk 0:01:00]} 34. Qxb7 {[%clk 0:01:01.6]} 34... Rxb7
{[%clk 0:01:00.9]} 35. Ba6 {[%clk 0:01:01.5]} 1-0

[Event "*** Titled Tuesday Blitz"]
[Site "Chess.com"]
[Date "2020.10.20"]
[Round "9"]
[White "KatarinaOstojic"]
[Black "NeverW84M8"]
[Result "1/2-1/2"]
[WhiteElo "2349"]
[BlackElo "2458"]
[TimeControl "180+1"]
[EndTime "11:45:59 PDT"]
[Termination "Game drawn by repetition"]

1. d4 {[%clk 0:03:00.9]} 1... Nf6 {[%clk 0:02:59.9]} 2. Nf3 {[%clk 0:02:58.2]}
2... g6 {[%clk 0:02:59.3]} 3. Bg5 {[%clk 0:02:57.7]} 3... Bg7 {[%clk 0:02:59.4]}
4. Nbd2 {[%clk 0:02:58.3]} 4... O-O {[%clk 0:02:58.5]} 5. c3 {[%clk 0:02:58.9]}
5... b6 {[%clk 0:02:58.1]} 6. e4 {[%clk 0:02:58.1]} 6... Bb7 {[%clk 0:02:58.5]}
7. e5 {[%clk 0:02:58.4]} 7... Ne4 {[%clk 0:02:58.5]} 8. Nxe4 {[%clk 0:02:54.2]}
8... Bxe4 {[%clk 0:02:58.6]} 9. Bd3 {[%clk 0:02:54.9]} 9... Bxd3 {[%clk
0:02:55.9]} 10. Qxd3 {[%clk 0:02:55.8]} 10... f6 {[%clk 0:02:56.2]} 11. exf6
{[%clk 0:02:53.6]} 11... exf6 {[%clk 0:02:56.2]} 12. Bf4 {[%clk 0:02:51.7]}
12... Re8+ {[%clk 0:02:56]} 13. Be3 {[%clk 0:02:50.4]} 13... d5 {[%clk
0:02:51.5]} 14. O-O {[%clk 0:02:50.2]} 14... Nd7 {[%clk 0:02:51.4]} 15. h3
{[%clk 0:02:50]} 15... f5 {[%clk 0:02:50]} 16. Bg5 {[%clk 0:02:47.8]} 16... Bf6
{[%clk 0:02:45.9]} 17. Qd2 {[%clk 0:02:34.7]} 17... Bxg5 {[%clk 0:02:42.3]} 18.
Nxg5 {[%clk 0:02:35.6]} 18... Nf6 {[%clk 0:02:39.5]} 19. Rfe1 {[%clk 0:02:33.1]}
19... Qd6 {[%clk 0:02:38.9]} 20. Rxe8+ {[%clk 0:02:26.8]} 20... Rxe8 {[%clk
0:02:38.3]} 21. Re1 {[%clk 0:02:27.7]} 21... Rxe1+ {[%clk 0:02:34]} 22. Qxe1
{[%clk 0:02:28.6]} 22... Ne4 {[%clk 0:02:33.8]} 23. Nxe4 {[%clk 0:02:27.9]}
23... dxe4 {[%clk 0:02:30.6]} 24. Qe2 {[%clk 0:02:24.3]} 24... Qd5 {[%clk
0:02:29.8]} 25. Qa6 {[%clk 0:02:23.5]} 25... c5 {[%clk 0:02:09.6]} 26. dxc5
{[%clk 0:02:09.4]} 26... bxc5 {[%clk 0:02:08.9]} 27. Qxa7 {[%clk 0:02:04.9]}
27... Qd1+ {[%clk 0:02:02.6]} 28. Kh2 {[%clk 0:02:04.5]} 28... Qd6+ {[%clk
0:02:02.6]} 29. Kg1 {[%clk 0:01:59.9]} 29... Qd1+ {[%clk 0:02:00.2]} 30. Kh2
{[%clk 0:01:59.3]} 30... Qd6+ {[%clk 0:02:01.1]} 31. Kg1 {[%clk 0:01:47.4]}
31... h5 {[%clk 0:01:53.4]} 32. Qa8+ {[%clk 0:01:45.4]} 32... Kg7 {[%clk
0:01:53.2]} 33. Qb7+ {[%clk 0:01:45.3]} 33... Kf6 {[%clk 0:01:53.2]} 34. a4
{[%clk 0:01:43.5]} 34... Qd1+ {[%clk 0:01:43.6]} 35. Kh2 {[%clk 0:01:43.4]}
35... Qd6+ {[%clk 0:01:36]} 36. Kg1 {[%clk 0:01:32.3]} 36... h4 {[%clk
0:01:27.7]} 37. a5 {[%clk 0:01:24.2]} 37... Qd1+ {[%clk 0:01:25.2]} 38. Kh2
{[%clk 0:01:24.1]} 38... Qd6+ {[%clk 0:01:01.5]} 39. Kg1 {[%clk 0:01:19.8]}
39... Qd1+ {[%clk 0:00:48.5]} 40. Kh2 {[%clk 0:01:19.6]} 40... Qd6+ {[%clk
0:00:49.4]} 41. Kg1 {[%clk 0:01:19.6]} 1/2-1/2